bitfinex/quotes_BTCUSD_20250608
["timestamp","ask_amount","ask_price","bid_price","bid_amount"]
[1749422560875,1.30887412,105990.0,105980.0,0.01014457]
[1749422561395,1.31542571,105990.0,105980.0,0.01014457]
[1749422561606,1.3154257,105990.0,105980.0,0.01014457]
[1749422561808,1.30887412,105990.0,105980.0,0.01014457]
[1749422562011,1.31542571,105990.0,105980.0,0.01014457]
[1749422562352,1.3154256,105990.0,105980.0,0.01014457]
[1749422562700,1.28746919,105990.0,105980.0,0.01014457]
[1749422562906,1.28091771,105990.0,105980.0,0.01014457]
[1749422563115,1.28746919,105990.0,105980.0,0.01014457]
[1749422563331,1.28747066,105990.0,105980.0,0.01014457]
[1749422563528,1.28091771,105990.0,105980.0,0.01014457]
[1749422563728,1.28747065,105990.0,105980.0,0.01014457]
[1749422564089,1.28747245,105990.0,105980.0,0.01014457]
[1749422564631,1.28091771,105990.0,105980.0,0.01014457]
[1749422564836,1.28747249,105990.0,105980.0,0.01014457]
[1749422565258,1.28747366,105990.0,105980.0,0.01014457]
[1749422566997,1.28747368,105990.0,105980.0,0.01014457]
[1749422567357,1.28747367,105990.0,105980.0,0.01014457]
[1749422567649,1.34321623,105990.0,105980.0,0.01014457]
[1749422567971,1.33665973,105990.0,105980.0,0.01014457]
[1749422568375,1.3432166,105990.0,105980.0,0.01014457]
[1749422568516,1.33665973,105990.0,105980.0,0.01014457]
[1749422568723,1.34321659,105990.0,105980.0,0.01014457]
[1749422569412,1.34322738,105990.0,105980.0,0.01014457]
[1749422570052,1.33665973,105990.0,105980.0,0.01014457]
[1749422570291,1.34322737,105990.0,105980.0,0.01014457]
[1749422570718,1.3060527,105990.0,105980.0,0.01014457]
[1749422570966,1.30605392,105990.0,105980.0,0.01014457]
[1749422571358,1.30605391,105990.0,105980.0,0.01014457]
[1749422571540,1.30605385,105990.0,105980.0,0.01014457]
[1749422571755,1.30605398,105990.0,105980.0,0.01014457]
[1749422572309,1.30605388,105990.0,105980.0,0.01014457]
[1749422572864,1.30606372,105990.0,105980.0,0.01014457]
[1749422573067,1.30606376,105990.0,105980.0,0.01014457]
[1749422573477,1.29948506,105990.0,105980.0,0.01014457]
[1749422573679,1.30606376,105990.0,105980.0,0.01014457]
[1749422574299,1.29948506,105990.0,105980.0,0.01014457]
[1749422574501,1.24374421,105990.0,105980.0,0.01014457]
[1749422574907,1.2503228,105990.0,105980.0,0.01014457]
[1749422575133,1.24374421,105990.0,105980.0,0.01014457]
[1749422575268,1.2503228,105990.0,105980.0,0.01014457]
[1749422575469,1.24374421,105990.0,105980.0,0.01014457]
[1749422575670,1.2503228,105990.0,105980.0,0.01014457]
[1749422576478,1.24374421,105990.0,105980.0,0.01014457]
[1749422576700,1.25032192,105990.0,105980.0,0.01014457]
[1749422576913,0.54762488,105960.0,105950.0,0.01]
[1749422577246,1.15861951,105960.0,105950.0,0.01014367]
[1749422577397,1.21473501,105960.0,105950.0,0.01014367]
[1749422577598,1.22993497,105960.0,105950.0,0.01014367]
[1749422577798,1.23267318,105960.0,105950.0,0.01014367]
[1749422578006,1.23267318,105960.0,105950.0,0.02754367]
[1749422578007,0.85913863,105960.0,105950.0,0.02754367]
[1749422578206,0.76295549,105960.0,105950.0,0.04354367]
[1749422578465,0.71896824,105960.0,105950.0,0.04354367]
[1749422578626,0.71896824,105960.0,105950.0,0.04254367]
[1749422579030,0.71996824,105960.0,105950.0,0.04254367]
[1749422579233,0.71996824,105960.0,105950.0,0.04454367]
[1749422579438,0.72654524,105960.0,105950.0,0.04254367]
[1749422579814,0.72754525,105960.0,105950.0,0.04254367]
[1749422580240,0.71823049,105960.0,105950.0,0.04254367]
[1749422580446,0.71165348,105960.0,105950.0,0.04254367]
[1749422580689,0.70303052,105960.0,105950.0,0.04254367]
[1749422581028,0.69645348,105960.0,105950.0,0.04254367]
[1749422581222,0.70303053,105960.0,105950.0,0.04254367]
[1749422581875,0.70303051,105960.0,105950.0,0.04254367]
[1749422582057,0.69645348,105960.0,105950.0,0.04254367]
[1749422582250,0.70303053,105960.0,105950.0,0.04254367]
[1749422582864,0.7030304,105960.0,105950.0,0.04254367]
[1749422583598,0.70303037,105960.0,105950.0,0.04254367]
[1749422583800,0.70303036,105960.0,105950.0,0.04254367]
[1749422584004,0.69645348,105960.0,105950.0,0.04254367]
[1749422584146,0.70303036,105960.0,105950.0,0.04254367]
[1749422584962,0.70302429,105960.0,105950.0,0.04254367]
[1749422585162,0.70302431,105960.0,105950.0,0.04254367]
[1749422585385,0.69645348,105960.0,105950.0,0.04254367]
[1749422585631,0.7030243,105960.0,105950.0,0.04254367]
[1749422585774,0.69645348,105960.0,105950.0,0.04254367]
[1749422586023,0.7030243,105960.0,105950.0,0.04254367]
[1749422586420,0.69645348,105960.0,105950.0,0.04254367]
[1749422587046,0.7030243,105960.0,105950.0,0.04254367]
[1749422587334,0.69645348,105960.0,105950.0,0.04254367]
[1749422587558,0.7030243,105960.0,105950.0,0.04254367]
[1749422587756,0.69645348,105960.0,105950.0,0.04254367]
[1749422588340,0.7030243,105960.0,105950.0,0.04254367]
[1749422588925,0.69645348,105960.0,105950.0,0.04254367]
[1749422589163,0.70302433,105960.0,105950.0,0.04254367]
[1749422589387,0.69645348,105960.0,105950.0,0.04254367]
[1749422589570,0.70302433,105960.0,105950.0,0.04254367]
[1749422590504,0.70302434,105960.0,105950.0,0.04254367]
[1749422590791,0.69645348,105960.0,105950.0,0.04254367]
[1749422591089,0.70302433,105960.0,105950.0,0.04254367]
[1749422591932,0.70302324,105960.0,105950.0,0.04254367]
[1749422592261,0.70302325,105960.0,105950.0,0.04254367]
[1749422592473,0.69645348,105960.0,105950.0,0.04254367]
[1749422592859,0.70302325,105960.0,105950.0,0.04254367]
[1749422593064,0.69645348,105960.0,105950.0,0.04254367]
[1749422593268,0.70302325,105960.0,105950.0,0.04254367]
[1749422593895,0.70302285,105960.0,105950.0,0.04254367]
[1749422594364,0.69645348,105960.0,105950.0,0.04254367]
[1749422594577,0.69645348,105960.0,105950.0,1.01439359]
[1749422594578,0.04983157,105960.0,105950.0,1.01439359]
[1749422594782,0.22849912,105960.0,105950.0,1.03326942]
[1749422595385,0.56749912,105960.0,105950.0,1.01439359]
[1749422595562,0.55706231,105960.0,105950.0,0.57282673]
[1749422595764,0.54762524,105960.0,105950.0,1.01439359]
[1749422595970,0.54762524,105960.0,105950.0,1.01639359]
[1749422596764,0.54762524,105960.0,105950.0,1.02583155]
[1749422596996,0.54762524,105960.0,105950.0,1.03526942]
[1749422597324,0.54762524,105960.0,105950.0,1.03726942]
[1749422597722,0.36831157,105960.0,105950.0,1.0372688]
[1749422597950,0.377749,105960.0,105950.0,1.0372688]
[1749422598145,0.38718652,105960.0,105950.0,1.0372688]
[1749422601911,0.56650001,105960.0,105950.0,1.02783101]
[1749422603230,0.56650001,105960.0,105950.0,1.00895536]
[1749422603231,0.55706276,105960.0,105950.0,1.00895536]
[1749422603631,0.55706276,105960.0,105950.0,0.5673885]
[1749422603847,0.55706276,105960.0,105950.0,0.57682664]
[1749422604854,0.54762542,105960.0,105950.0,0.36898208]
[1749422605228,0.54762542,105960.0,105950.0,0.05598208]
[1749422605442,0.54762542,105960.0,105950.0,0.36898208]
[1749422607336,0.54762542,105960.0,105950.0,0.55775036]
[1749422607554,0.54762542,105960.0,105950.0,0.56718859]
[1749422607765,0.54762542,105960.0,105950.0,0.57662673]
[1749422609760,0.54762542,105960.0,105950.0,0.35954367]
[1749422611494,0.54762542,105960.0,105950.0,0.36898208]
[1749422612146,0.54762542,105960.0,105950.0,0.55775036]
[1749422612373,0.54762542,105960.0,105950.0,0.56718868]
[1749422612596,0.54762542,105960.0,105950.0,0.57662673]
[1749422612816,0.54762542,105960.0,105950.0,0.58606469]
[1749422613009,0.54762542,105960.0,105950.0,0.56718868]
[1749422613431,0.54762542,105960.0,105950.0,0.57662691]
[1749422614065,0.54762542,105960.0,105950.0,0.58606505]
[1749422614399,0.54762542,105960.0,105950.0,0.57662691]
[1749422614622,0.54762542,105960.0,105950.0,0.58606505]
[1749422615261,0.54762542,105960.0,105950.0,0.5955031]
[1749422615872,0.54762542,105960.0,105950.0,1.03706951]
[1749422616002,0.54762542,105960.0,105950.0,1.02763155]
[1749422616242,0.54762542,105960.0,105950.0,1.00875536]
[1749422616445,0.54762542,105960.0,105950.0,1.0181935]
[1749422616850,0.54762542,105960.0,105950.0,0.58606469]
[1749422617051,0.54762542,105960.0,105950.0,1.03706951]
[1749422617258,0.54762542,105960.0,105950.0,1.03706906]
[1749422618112,0.54762542,105960.0,105950.0,1.02763119]
[1749422618322,0.27064383,105980.0,105970.0,0.1981692]
[1749422618519,0.00943583,105970.0,105960.0,0.68982776]
[1749422618734,0.00943583,105970.0,105960.0,1.00258776]
[1749422618938,0.01887183,105970.0,105960.0,1.00258776]
[1749422619144,0.54758653,105980.0,105970.0,0.20760529]
[1749422619348,0.54758653,105980.0,105970.0,0.68037215]
[1749422619546,0.54858653,105980.0,105970.0,0.67093597]
[1749422619758,0.54758653,105980.0,105970.0,0.67093597]
[1749422619966,0.54858653,105980.0,105970.0,0.67093597]
[1749422620796,0.54858653,105980.0,105970.0,0.68037233]
[1749422621225,0.54758653,105980.0,105970.0,0.68037233]
[1749422621448,0.54758653,105980.0,105970.0,0.70904454]
[1749422622068,0.54758653,105980.0,105970.0,0.71848063]
[1749422622069,0.35887067,105980.0,105970.0,0.71848063]
[1749422622280,0.36830605,105980.0,105970.0,0.72791663]
[1749422622482,0.5570209,105980.0,105970.0,0.27747768]
[1749422622675,0.5570209,105980.0,105970.0,0.71904454]
[1749422624395,0.5475857,105980.0,105970.0,0.27747768]
[1749422625560,0.5475857,105980.0,105970.0,0.28691377]
[1749422627032,0.5475857,105980.0,105970.0,0.28691395]
[1749422627271,0.5475857,105980.0,105970.0,0.29635013]
[1749422628745,0.36830659,105980.0,105970.0,0.73791699]
[1749422628964,0.36830659,105980.0,105970.0,0.74735299]
[1749422629169,0.36830588,105980.0,105970.0,0.74735299]
[1749422629369,0.55702073,105980.0,105970.0,0.73791699]
[1749422630765,0.36830588,105980.0,105970.0,0.74735299]
[1749422631671,0.37774153,105980.0,105970.0,0.74735299]
[1749422631890,0.38717727,105980.0,105970.0,0.74735299]
[1749422632311,0.38717727,105980.0,105970.0,0.73791699]
[1749422632938,0.38717727,105980.0,105970.0,0.74735308]
[1749422633392,0.38717727,105980.0,105970.0,0.74663569]
[1749422633644,0.56645709,105980.0,105970.0,0.74663569]
[1749422635398,0.5570218,105980.0,105970.0,0.7371996]
[1749422635603,0.53815059,105980.0,105970.0,0.05457221]
[1749422635802,0.56935059,105980.0,105970.0,0.3224]
[1749422636504,0.56935059,105980.0,105970.0,0.01]
[1749422636699,0.56935059,105980.0,105970.0,0.3224]
[1749422637859,0.53815059,105980.0,105970.0,0.3224]
[1749422638065,0.55345059,105980.0,105970.0,0.3224]
[1749422638719,0.56915059,105980.0,105970.0,0.3224]
[1749422643508,0.59157558,105980.0,105970.0,0.3224]
[1749422645522,0.59157558,105980.0,105970.0,0.01]
[1749422645722,0.59157558,105980.0,105970.0,0.32224]
[1749422655714,0.59157558,105980.0,105970.0,0.01]
[1749422660648,0.59815306,105980.0,105970.0,0.01]
[1749422661068,0.59815305,105980.0,105970.0,0.01]
[1749422661233,0.56715305,105980.0,105970.0,0.01]
[1749422661445,0.37185993,105980.0,105970.0,0.67386362]
[1749422661780,0.46242499,105990.0,105980.0,0.24742099]
[1749422661985,0.50016278,105990.0,105980.0,1.00025932]
[1749422662691,0.69829467,105990.0,105980.0,0.99082421]
[1749422662934,0.67942613,105990.0,105980.0,0.98138883]
[1749422663341,0.67942613,105990.0,105980.0,0.5404305]
[1749422665443,0.66999164,105990.0,105980.0,0.51589485]
[1749422666179,0.66999164,105990.0,105980.0,0.54996615]
[1749422666601,0.66999164,105990.0,105980.0,0.54053059]
[1749422667209,0.1,105990.0,105980.0,1.17411458]
[1749422667410,0.10943422,105990.0,105980.0,1.20242072]
[1749422667623,0.10943422,105990.0,105980.0,1.10602124]
[1749422668014,0.1,105990.0,105980.0,1.10602124]
[1749422668418,0.10943405,105990.0,105980.0,1.10602124]
[1749422668827,0.1,105990.0,105980.0,1.85964712]
[1749422669029,0.1,105990.0,105980.0,1.51726157]
[1749422669640,0.1,105990.0,105980.0,1.51626157]
[1749422669860,0.1,105990.0,105980.0,1.51526157]
[1749422670061,0.1,105990.0,105980.0,1.51726157]
[1749422671032,0.1,105990.0,105980.0,1.52026157]
[1749422672754,0.10943405,105990.0,105980.0,1.52026157]
[1749422673143,0.11886854,105990.0,105980.0,1.07005621]
[1749422673342,0.31700025,105990.0,105980.0,1.09344665]
[1749422673619,0.31700025,105990.0,105980.0,0.97365691]
[1749422673817,0.12830321,105990.0,105980.0,0.98309148]
[1749422673957,0.12830321,105990.0,105980.0,1.42387651]
[1749422674895,0.12830321,105990.0,105980.0,1.12557651]
[1749422675258,0.12830321,105990.0,105980.0,0.68479148]
[1749422675600,0.12830321,105990.0,105980.0,1.12557651]
[1749422675946,0.13773806,105990.0,105980.0,1.1161414]
[1749422676327,0.12830312,105990.0,105980.0,1.12557651]
[1749422678958,0.12830312,105990.0,105980.0,0.71217651]
[1749422679166,0.12830312,105990.0,105980.0,1.02357651]
[1749422679417,0.11886854,105990.0,105980.0,1.02357651]
[1749422679797,0.11886845,105990.0,105980.0,1.12541651]
[1749422679982,0.10943414,105990.0,105980.0,1.12541651]
[1749422680428,0.1,105990.0,105980.0,1.12541651]
[1749422680644,0.10943405,105990.0,105980.0,1.12541651]
[1749422681529,0.10943405,105990.0,105980.0,0.68463148]
[1749422681771,0.1,105990.0,105980.0,1.22181599]
[1749422683443,0.1,105990.0,105980.0,1.33275632]
[1749422683650,0.1,105990.0,105980.0,0.89197129]
[1749422683873,0.1,105990.0,105980.0,1.33275632]
[1749422684067,0.1,105990.0,105980.0,0.89197129]
[1749422684287,0.1,105990.0,105980.0,0.79557181]
[1749422684511,0.11886854,105990.0,105980.0,1.23635684]
[1749422684789,0.12830294,105990.0,105980.0,1.23635684]
[1749422685148,0.11886845,105990.0,105980.0,1.22181599]
[1749422685476,0.12830294,105990.0,105980.0,1.22181599]
[1749422685732,0.11886845,105990.0,105980.0,1.31821547]
[1749422686384,0.12830294,105990.0,105980.0,0.35259096]
[1749422686760,0.13773761,105990.0,105980.0,1.19111599]
[1749422687348,0.11886845,105990.0,105980.0,1.20111599]
[1749422687554,0.12830294,105990.0,105980.0,1.23281599]
[1749422687730,0.12830285,105990.0,105980.0,1.23281599]
[1749422688317,0.12830285,105990.0,105980.0,1.26231114]
[1749422688934,0.10943414,105990.0,105980.0,1.26231114]
[1749422689137,0.10943422,105990.0,105980.0,1.26231114]
[1749422689347,0.10943414,105990.0,105980.0,1.26231114]
[1749422689758,0.11886845,105990.0,105980.0,1.56061114]
[1749422692141,0.12830294,105990.0,105980.0,1.56061114]
[1749422692339,0.11886845,105990.0,105980.0,1.56061114]
[1749422693540,0.11886845,105990.0,105980.0,1.53111599]
[1749422694325,0.10943414,105990.0,105980.0,1.53111599]
[1749422694727,0.11886871,105990.0,105980.0,1.53111599]
[1749422694935,0.10943422,105990.0,105980.0,1.53111599]
[1749422695298,0.11886871,105990.0,105980.0,1.53111599]
[1749422695665,0.11886871,105990.0,105980.0,1.24900882]
[1749422697302,0.11886871,105990.0,105980.0,1.68960527]
[1749422697496,0.12830338,105990.0,105980.0,1.68960527]
[1749422698177,0.10943422,105990.0,105980.0,1.68960527]
[1749422698475,0.11886862,105990.0,105980.0,1.68960527]
[1749422698798,0.10943422,105990.0,105980.0,1.68960527]
[1749422699164,0.10943414,105990.0,105980.0,1.70414612]
[1749422699410,0.10943414,105990.0,105980.0,1.26339306]
[1749422699979,0.11886836,105990.0,105980.0,1.26339306]
[1749422700347,0.12830276,105990.0,105980.0,1.26339306]
[1749422700554,0.13773734,105990.0,105980.0,1.26339306]
[1749422700773,0.14717201,105990.0,105980.0,1.26339306]
[1749422701217,0.13773734,105990.0,105980.0,1.26339306]
[1749422701639,0.13773734,105990.0,105980.0,1.56169306]
[1749422702223,0.14717201,105990.0,105980.0,1.56169306]
[1749422704213,0.12830276,105990.0,105980.0,1.56169306]
[1749422704422,0.31700078,105990.0,105980.0,0.8784089]
[1749422704629,0.31700078,105990.0,105980.0,1.49658217]
[1749422704835,0.31700078,105990.0,105980.0,1.48714697]
[1749422705268,0.31700078,105990.0,105980.0,1.49658253]
[1749422705480,0.31700078,105990.0,105980.0,1.506018]
[1749422706304,0.31700078,105990.0,105980.0,1.51545338]
[1749422706517,0.31700078,105990.0,105980.0,1.4803897]
[1749422706727,0.33976638,105990.0,105980.0,1.4803897]
[1749422707373,0.33976638,105990.0,105980.0,1.1820897]
[1749422707864,0.3303318,105990.0,105980.0,0.97450364]
[1749422708066,0.3303318,105990.0,105980.0,1.16321849]
[1749422708293,0.3303318,105990.0,105980.0,1.17265414]
[1749422709327,0.3303318,105990.0,105980.0,0.97450364]
[1749422709745,0.3303318,105990.0,105980.0,0.56146364]
[1749422709968,0.3303318,105990.0,105980.0,0.96441901]
[1749422710180,0.32089704,105990.0,105980.0,0.77570416]
[1749422710388,0.32089704,105990.0,105980.0,0.76626842]
[1749422710827,0.32089704,105990.0,105980.0,0.77570416]
[1749422711239,0.28869704,105990.0,105980.0,0.77570416]
[1749422712960,0.28869704,105990.0,105980.0,0.97385457]
[1749422713382,0.28869704,105990.0,105980.0,0.77570416]
[1749422714209,0.28869704,105990.0,105980.0,0.97385466]
[1749422715265,0.28869704,105990.0,105980.0,0.76626842]
[1749422715476,0.32059704,105990.0,105980.0,0.77570416]
[1749422715684,0.32059704,105990.0,105980.0,0.76626842]
[1749422716312,0.32059704,105990.0,105980.0,0.96441901]
[1749422716450,0.32059704,105990.0,105980.0,0.97385466]
[1749422717674,0.30519704,105990.0,105980.0,0.97385466]
[1749422717881,0.28869704,105990.0,105980.0,0.97385466]
[1749422719357,0.30519704,105990.0,105980.0,0.97397398]
[1749422720425,0.28869704,105990.0,105980.0,0.97397398]
[1749422720959,0.28869704,105990.0,105980.0,0.98340954]
[1749422721902,0.1,105990.0,105980.0,1.43359275]
[1749422722116,0.10943476,105990.0,105980.0,1.4430275]
[1749422722345,0.11886916,105990.0,105980.0,1.4430275]
[1749422722900,0.11886916,105990.0,105980.0,1.4591275]
[1749422723526,0.12830338,105990.0,105980.0,1.4591275]
[1749422723940,0.12830338,105990.0,105980.0,1.5600875]
[1749422724769,0.13773814,105990.0,105980.0,1.5600875]
[1749422725795,0.13773814,105990.0,105980.0,1.5594875]
[1749422728271,0.13773814,105990.0,105980.0,1.4585275]
[1749422730833,0.12830338,105990.0,105980.0,1.4585275]
[1749422731859,0.12830338,105990.0,105980.0,1.4735275]
[1749422733892,0.12830338,105990.0,105980.0,1.4585275]
[1749422738590,0.12830338,105990.0,105980.0,1.4430275]
[1749422740944,0.12830338,105990.0,105980.0,0.56153202]
[1749422741157,0.14717299,105990.0,105980.0,1.00227976]
[1749422741560,0.14717299,105990.0,105980.0,1.4430275]
[1749422742414,0.32643581,105990.0,105980.0,0.99284465]
[1749422742622,0.32643581,105990.0,105980.0,1.00227994]
[1749422747244,0.31700132,105990.0,105980.0,1.00227994]
[1749422748173,0.30756665,105990.0,105980.0,0.98340927]
[1749422748583,0.30756665,105990.0,105980.0,0.99284465]
[1749422749237,0.30756665,105990.0,105980.0,1.00227994]
[1749422750215,0.30756665,105990.0,105980.0,0.99284465]
[1749422753045,0.32266665,105990.0,105980.0,0.99284465]
[1749422753380,0.32853189,105990.0,105980.0,0.54266153]
[1749422753604,0.32853189,105990.0,105980.0,0.9739738]
[1749422753860,0.32853189,105990.0,105980.0,0.98340927]
[1749422754091,0.32853189,105990.0,105980.0,0.67276927]
[1749422754318,0.32853189,105990.0,105980.0,0.98224927]
[1749422757145,0.32853189,105990.0,105980.0,0.95394259]
[1749422757368,0.31909704,105990.0,105980.0,0.3244]
[1749422757503,0.31909704,105990.0,105980.0,0.32436]
[1749422757714,0.31909704,105990.0,105980.0,0.015]
[1749422757916,0.34156082,105990.0,105980.0,0.015]
[1749422758840,0.31909704,105990.0,105980.0,0.015]
[1749422766611,0.65909704,105990.0,105980.0,0.015]
[1749422766767,0.68156121,105990.0,105980.0,0.015]
[1749422766981,0.68814169,105990.0,105980.0,0.015]
[1749422767189,0.68156121,105990.0,105980.0,0.015]
[1749422780338,0.65116121,105990.0,105980.0,0.015]
[1749422780707,0.66736121,105990.0,105980.0,0.015]
[1749422780910,0.68266121,105990.0,105980.0,0.015]
[1749422783704,0.68923985,105990.0,105980.0,0.015]
[1749422783880,0.68923986,105990.0,105980.0,0.015]
[1749422784491,0.68266121,105990.0,105980.0,0.015]
[1749422784674,0.68923976,105990.0,105980.0,0.015]
[1749422785164,0.68923985,105990.0,105980.0,0.015]
[1749422785568,0.68924541,105990.0,105980.0,0.015]
[1749422785924,0.68266121,105990.0,105980.0,0.015]
[1749422786558,0.68924536,105990.0,105980.0,0.015]
[1749422787163,0.68266121,105990.0,105980.0,0.015]
[1749422787959,0.68924612,105990.0,105980.0,0.015]
[1749422788626,0.68924611,105990.0,105980.0,0.015]
[1749422788961,0.68266121,105990.0,105980.0,0.015]
[1749422789213,0.68924714,105990.0,105980.0,0.015]
[1749422789423,0.68266121,105990.0,105980.0,0.015]
[1749422789982,0.68924713,105990.0,105980.0,0.015]
[1749422790197,0.67394713,105990.0,105980.0,0.015]
[1749422791070,0.67394738,105990.0,105980.0,0.015]
[1749422792247,0.66736121,105990.0,105980.0,0.015]
[1749422792450,0.67395073,105990.0,105980.0,0.015]
[1749422792748,0.67395074,105990.0,105980.0,0.015]
[1749422792981,0.66736121,105990.0,105980.0,0.015]
[1749422793189,0.67395075,105990.0,105980.0,0.015]
[1749422794065,0.66736121,105990.0,105980.0,0.015]
[1749422794250,0.67395097,105990.0,105980.0,0.015]
[1749422794499,0.66736121,105990.0,105980.0,0.015]
[1749422794707,0.67395107,105990.0,105980.0,0.015]
[1749422795222,0.65775107,105990.0,105980.0,0.015]
[1749422795879,0.65775107,105990.0,105980.0,0.68609824]
[1749422796083,0.65775122,105990.0,105980.0,0.6955338]
[1749422796259,0.31116121,105990.0,105980.0,0.6955338]
[1749422796603,0.31116121,105990.0,105980.0,1.14571692]
[1749422796900,0.31116121,105990.0,105980.0,1.26609236]
[1749422796901,0.10943431,105990.0,105980.0,1.26609236]
[1749422797102,0.10943431,105990.0,105980.0,1.34502283]
[1749422797103,0.11886871,105990.0,105980.0,1.34502283]
[1749422797310,0.1,105990.0,105980.0,1.26609236]
[1749422797522,0.10943414,105990.0,105980.0,1.26609236]
[1749422797938,0.1,105990.0,105980.0,1.26609236]
[1749422798191,0.10943405,105990.0,105980.0,1.26609236]
[1749422798801,0.12830259,105990.0,105980.0,1.26609236]
[1749422799010,0.12830259,105990.0,105980.0,1.35949184]
[1749422799211,0.13773726,105990.0,105980.0,1.35749184]
[1749422799451,0.13773726,105990.0,105980.0,1.36049184]
[1749422799657,0.13773726,105990.0,105980.0,1.36349184]
[1749422799826,0.13773717,105990.0,105980.0,1.36349184]
[1749422800032,0.13773726,105990.0,105980.0,1.36349184]
[1749422801337,0.14717202,105990.0,105980.0,0.92271086]
[1749422801564,0.31700132,105990.0,105980.0,0.35729083]
[1749422801763,0.31700132,105990.0,105980.0,0.36672639]
[1749422802324,0.31700132,105990.0,105980.0,0.37616177]
[1749422802600,0.31700132,105990.0,105980.0,0.36672639]
[1749422803124,0.31700132,105990.0,105980.0,0.15914033]
[1749422803326,0.30756665,105990.0,105980.0,0.66553083]
[1749422804283,0.30756665,105990.0,105980.0,0.46738033]
[1749422804484,0.30756665,105990.0,105980.0,0.47681607]
[1749422804674,0.29813189,105990.0,105980.0,0.016]
[1749422804806,0.29813189,105990.0,105980.0,0.32416]
[1749422805418,0.33093189,105990.0,105980.0,0.32416]
[1749422809169,0.33093189,105990.0,105980.0,0.016]
[1749422809391,0.33093189,105990.0,105980.0,0.32404]
[1749422813336,0.33093189,105990.0,105980.0,0.016]
[1749422814703,0.31463189,105990.0,105980.0,0.016]
[1749422815669,0.29813189,105990.0,105980.0,0.016]
[1749422819228,0.31443189,105990.0,105980.0,0.016]
[1749422824363,0.29813189,105990.0,105980.0,0.016]
[1749422827265,0.32993189,105990.0,105980.0,0.016]
[1749422829112,0.29813189,105990.0,105980.0,0.016]
[1749422829754,0.32993189,105990.0,105980.0,0.016]
[1749422831315,0.29813189,105990.0,105980.0,0.016]
[1749422831752,0.31433189,105990.0,105980.0,0.016]
[1749422833114,0.33073189,105990.0,105980.0,0.016]
[1749422833336,0.29813189,105990.0,105980.0,0.016]
[1749422834637,0.32059874,105990.0,105980.0,0.016]
[1749422838788,0.75699822,105990.0,105980.0,0.016]
[1749422839012,0.82227718,105990.0,105980.0,0.016]
[1749422839646,0.82227711,105990.0,105980.0,0.016]
[1749422839870,0.81567843,105990.0,105980.0,0.01]
[1749422840082,0.82227711,105990.0,105980.0,0.012]
[1749422840219,0.81567843,105990.0,105980.0,0.014]
[1749422840597,0.82227714,105990.0,105980.0,0.014]
[1749422840807,0.81567843,105990.0,105980.0,0.014]
[1749422841021,0.82227714,105990.0,105980.0,0.014]
[1749422841196,1.22907714,105990.0,105980.0,0.014]
[1749422841415,1.23840732,105990.0,105980.0,0.014]
[1749422841579,1.23840943,105990.0,105980.0,0.014]
[1749422841742,1.29459051,105990.0,105980.0,0.014]
[1749422841949,1.29459068,105990.0,105980.0,0.012]
[1749422842151,1.26646114,105990.0,105980.0,0.012]
[1749422842375,1.25985967,105990.0,105980.0,0.012]
[1749422842721,1.26646117,105990.0,105980.0,0.012]
[1749422843019,1.32257676,105990.0,105980.0,0.012]
[1749422843146,1.3225614,105990.0,105980.0,0.01]
[1749422843348,1.32256086,105990.0,105980.0,0.01]
[1749422843573,1.32256011,105990.0,105980.0,0.01]
[1749422843879,1.31597526,105990.0,105980.0,0.01]
[1749422844087,1.32255994,105990.0,105980.0,0.01]
[1749422844241,1.32255889,105990.0,105980.0,0.01]
[1749422844995,1.31597526,105990.0,105980.0,0.01]
[1749422845220,1.32255889,105990.0,105980.0,0.01]
[1749422845420,1.31597526,105990.0,105980.0,0.01]
[1749422845628,1.25985967,105990.0,105980.0,0.01]
[1749422845976,1.26644331,105990.0,105980.0,0.01]
[1749422846971,1.25985967,105990.0,105980.0,0.01]
[1749422847178,1.26643614,105990.0,105980.0,0.01]
[1749422847374,1.25985967,105990.0,105980.0,0.01]
[1749422847626,1.26643614,105990.0,105980.0,0.01]
[1749422847966,1.29450263,105990.0,105980.0,0.01]
[1749422848321,1.31627816,105990.0,105980.0,0.01]
[1749422848530,1.32283946,105990.0,105980.0,0.01]
[1749422848736,1.31626443,105990.0,105980.0,0.01]
[1749422848889,1.32283951,105990.0,105980.0,0.01]
[1749422849093,1.31626443,105990.0,105980.0,0.01]
[1749422849290,1.32283977,105990.0,105980.0,0.01]
[1749422850327,1.32284149,105990.0,105980.0,0.01]
[1749422850526,1.32284171,105990.0,105980.0,0.01]
[1749422850874,0.91604171,105990.0,105980.0,0.01]
[1749422851077,1.32216184,105990.0,105980.0,0.01]
[1749422851288,1.27817404,105990.0,105980.0,0.01]
[1749422851536,1.28475072,105990.0,105980.0,0.01]
[1749422852078,1.27817404,105990.0,105980.0,0.01]
[1749422852294,1.28475073,105990.0,105980.0,0.01]
[1749422852717,0.87863075,105990.0,105980.0,0.01]
[1749422852917,0.97775077,105990.0,105980.0,0.01]
[1749422853103,0.97775078,105990.0,105980.0,0.01]
[1749422853736,0.97775014,105990.0,105980.0,0.01]
[1749422853914,0.97117404,105990.0,105980.0,0.01]
[1749422854113,0.97775014,105990.0,105980.0,0.01]
[1749422854340,0.97117404,105990.0,105980.0,0.01]
[1749422854569,0.97775014,105990.0,105980.0,0.01]
[1749422855573,0.97117404,105990.0,105980.0,0.01]
[1749422855778,1.04547198,105990.0,105980.0,0.01]
[1749422856265,1.04547211,105990.0,105980.0,0.01]
[1749422856476,1.04547197,105990.0,105980.0,0.01]
[1749422856838,1.04647197,105990.0,105980.0,0.01]
[1749422857034,1.04747197,105990.0,105980.0,0.01]
[1749422857376,1.0128283,105990.0,105980.0,0.01]
[1749422857600,1.01940533,105990.0,105980.0,0.01]
[1749422857791,1.06894389,105990.0,105980.0,0.01]
[1749422857996,1.07552206,105990.0,105980.0,0.01]
[1749422858228,1.07552212,105990.0,105980.0,0.01]
[1749422858837,1.07552718,105990.0,105980.0,0.01]
[1749422859116,1.07552765,105990.0,105980.0,0.01]
[1749422859316,1.07552752,105990.0,105980.0,0.01]
[1749422859510,1.06894389,105990.0,105980.0,0.01]
[1749422859894,1.07552752,105990.0,105980.0,0.01]
[1749422860039,1.06894389,105990.0,105980.0,0.01]
[1749422860246,1.07552752,105990.0,105980.0,0.01]
[1749422860649,1.18946837,105990.0,105980.0,0.01]
[1749422860888,1.12372321,105990.0,105980.0,0.01]
[1749422861091,1.1171363,105990.0,105980.0,0.01]
[1749422861304,0.68319126,105980.0,105970.0,0.01]
[1749422861456,1.19526541,105980.0,105970.0,0.01]
[1749422861660,1.10244959,105980.0,105970.0,0.01]